bitfinex/quotes_SOLUSD_20250609
["timestamp","ask_amount","ask_price","bid_price","bid_amount"]
[1749465518233,15.64423405,154.96,154.92,6.45494448]
[1749465518444,11.54,154.98,154.93,34.29388291]
[1749465518445,27.18423405,154.98,154.93,34.29388291]
[1749465518841,27.18423405,154.98,154.94,15.64423405]
[1749465519151,11.54,154.98,154.96,34.29388291]
[1749465519348,11.54,154.98,154.97,18.64964886]
[1749465519552,15.64423405,155.01,154.97,18.64964886]
[1749465519553,15.64423405,155.01,154.97,15.64423405]
[1749465521063,15.64423405,155.01,154.97,22.09683902]
[1749465521442,15.64423405,155.01,154.97,6.45260497]
[1749465522049,53.22,155.02,154.96,6.45315584]
[1749465522050,15.64423405,154.99,154.96,6.45315584]
[1749465522748,15.64423405,155.01,154.96,22.09738989]
[1749465522938,15.64423405,155.0,154.96,22.09738989]
[1749465523563,15.64423405,155.01,154.96,22.09738989]
[1749465525447,53.22,155.02,154.98,15.64423405]
[1749465525448,68.86423405,155.02,154.98,15.64423405]
[1749465525979,68.86423405,155.02,154.97,15.64423405]
[1749465526179,15.64423405,155.01,154.97,18.64964886]
[1749465526347,53.22,155.02,154.96,38.23058555]
[1749465526348,15.64423405,155.0,154.96,22.09738989]
[1749465526544,15.64423405,155.0,154.96,6.45315584]
[1749465527073,53.22,155.02,154.96,6.45315584]
[1749465527274,15.64423405,155.0,154.96,22.09738989]
[1749465529353,53.22,155.02,154.97,15.64423405]
[1749465529555,15.64423405,155.01,154.97,34.29388291]
[1749465529758,15.64423405,155.01,154.97,18.64964886]
[1749465529960,15.64423405,155.01,154.97,34.29388291]
[1749465531080,15.64423405,155.0,154.97,18.64964886]
[1749465531261,15.64423405,155.0,154.96,6.45315584]
[1749465531458,15.64423405,155.0,154.96,25.1028047]
[1749465532061,15.64423405,155.0,154.97,18.64964886]
[1749465532268,15.64423405,155.01,154.97,18.64964886]
[1749465532460,15.64423405,155.01,154.97,15.64423405]
[1749465533485,9.61938619,155.01,154.98,6.45244547]
[1749465533683,62.83938619,155.02,154.98,16.07183166]
[1749465534063,11.54,155.02,154.98,6.45244547]
[1749465534262,11.54,155.02,154.98,16.07183166]
[1749465535465,21.15938619,155.02,154.98,6.45244547]
[1749465536766,21.15938619,155.02,154.97,9.61938619]
[1749465536969,9.61938619,154.99,154.95,18.64964886]
[1749465537277,9.61938619,154.99,154.94,16.11028619]
[1749465537278,9.61938619,154.97,154.94,18.64964886]
[1749465537486,9.61938619,154.98,154.94,18.64964886]
[1749465539181,9.61938619,154.98,154.95,6.45369474]
[1749465539989,41.66,154.99,154.95,6.45369474]
[1749465540186,9.61938619,154.97,154.94,6.45411126]
[1749465540365,9.61938619,154.96,154.93,25.10402151]
[1749465540564,9.61938619,154.97,154.93,25.10402151]
[1749465540767,9.61938619,154.97,154.93,34.7234077]
[1749465542494,9.61938619,154.97,154.93,25.10402151]
[1749465542881,9.61938619,154.94,154.91,25.10501003]
[1749465545383,51.27938619,154.95,154.91,25.10501003]
[1749465545771,9.61938619,154.94,154.91,25.10501003]
[1749465546671,9.61938619,154.93,154.9,18.64964886]
[1749465547086,9.61938619,154.92,154.89,18.64964886]
[1749465547305,26.0,154.89,154.77,32.30591578]
[1749465547484,9.61938619,154.86,154.78,6.46078304]
[1749465547675,41.64,154.88,154.82,9.61938619]
[1749465547876,51.25938619,154.88,154.83,9.61938619]
[1749465548079,9.61938619,154.87,154.83,9.61938619]
[1749465548396,9.61938619,154.86,154.83,18.64964886]
[1749465549096,9.61938619,154.86,154.82,9.61938619]
[1749465549097,9.61938619,154.85,154.82,18.64964886]
[1749465549574,48.09668671,154.88,154.79,6.46034582]
[1749465549575,9.61938619,154.83,154.79,6.46034582]
[1749465549770,48.09668671,154.88,154.79,6.46034582]
[1749465549771,9.61938619,154.82,154.79,6.46034582]
[1749465549973,9.61938619,154.83,154.79,16.07973201]
[1749465550197,1.5778,154.87,154.77,6.46120049]
[1749465550198,41.66,154.84,154.77,6.46120049]
[1749465550497,9.61938619,154.83,154.8,18.64964886]
[1749465550686,41.66,154.84,154.8,18.64964886]
[1749465550885,41.66,154.84,154.79,18.64964886]
[1749465551093,41.66,154.84,154.8,9.61938619]
[1749465551273,9.61938619,154.83,154.79,9.61938619]
[1749465552505,41.66,154.84,154.8,16.07933451]
[1749465553202,41.66,154.84,154.82,18.64964886]
[1749465554377,41.66,154.84,154.82,25.10859216]
[1749465557788,41.66,154.84,154.82,18.64964886]
[1749465558686,41.66,154.84,154.82,25.10859871]
[1749465559399,41.66,154.84,154.82,18.64964886]
[1749465559625,51.27938619,154.84,154.82,18.64964886]
[1749465559903,41.66,154.84,154.82,6.45900866]
[1749465560396,41.66,154.84,154.82,25.10865752]
[1749465561283,41.66,154.84,154.81,6.459436]
[1749465561511,51.27938619,154.84,154.81,6.459436]
[1749465561683,51.27938619,154.84,154.81,18.64964886]
[1749465563507,9.61938619,154.83,154.81,18.64964886]
[1749465563811,9.61938619,154.82,154.78,28.26903505]
[1749465563989,9.61938619,154.83,154.78,28.26903505]
[1749465564515,9.61938619,154.83,154.78,18.64964886]
[1749465564704,9.61938619,154.83,154.78,28.26903505]
[1749465565010,9.61938619,154.83,154.8,18.64964886]
[1749465565304,51.27938619,154.84,154.8,18.64964886]
[1749465565504,51.27938619,154.84,154.8,25.10929766]
[1749465565883,51.27938619,154.84,154.8,34.72868385]
[1749465565884,41.66,154.84,154.8,34.72868385]
[1749465566098,41.66,154.84,154.81,9.61938619]
[1749465566997,41.66,154.84,154.8,34.72868385]
[1749465567200,41.66,154.84,154.8,25.10929766]
[1749465567515,41.66,154.84,154.8,34.72868385]
[1749465568605,9.61938619,154.85,154.81,9.61938619]
[1749465568811,51.25938619,154.85,154.81,9.61938619]
[1749465569022,41.64,154.85,154.81,9.61938619]
[1749465569191,41.64,154.85,154.82,9.61938619]
[1749465569397,51.25938619,154.86,154.81,9.61938619]
[1749465569598,9.61938619,154.85,154.81,6.45939653]
[1749465569918,9.61938619,154.85,154.81,25.10904539]
[1749465570504,9.61938619,154.85,154.81,34.72843158]
[1749465571096,41.64,154.85,154.82,18.64964886]
[1749465571706,41.64,154.85,154.82,25.10834854]
[1749465572419,41.64,154.85,154.82,34.72773473]
[1749465572595,41.64,154.85,154.82,25.10834854]
[1749465572799,41.64,154.85,154.82,34.72773473]
[1749465574019,9.61938619,154.88,154.84,9.61938619]
[1749465574321,41.64,154.89,154.83,18.64964886]
[1749465574523,9.61938619,154.88,154.84,9.61938619]
[1749465575123,51.25938619,154.88,154.84,9.61938619]
[1749465575910,51.25938619,154.88,154.83,28.26903505]
[1749465576709,41.64,154.88,154.84,16.0776657]
[1749465576907,9.61938619,154.9,154.86,18.64964886]
[1749465577220,13.0298,154.91,154.88,28.26903505]
[1749465577421,11.48,154.91,154.88,28.26903505]
[1749465577612,11.48,154.91,154.89,9.61938619]
[1749465577808,11.48,154.91,154.88,18.64964886]
[1749465577809,11.48,154.91,154.9,28.26903505]
[1749465578009,11.48,154.91,154.9,9.61938619]
[1749465578215,46.81938619,154.95,154.9,9.61938619]
[1749465578416,41.62,154.94,154.91,9.61938619]
[1749465578729,41.62,154.94,154.91,16.07457571]
[1749465578925,41.62,154.94,154.9,16.07501266]
[1749465579231,51.23938619,154.94,154.9,16.07501266]
[1749465579528,9.61938619,154.93,154.89,18.64964886]
[1749465581008,9.61938619,154.93,154.89,25.10584136]
[1749465581723,9.61938619,154.93,154.89,18.64964886]
[1749465582422,16.07394776,154.93,154.89,18.64964886]
[1749465582617,9.61938619,154.91,154.87,6.45686397]
[1749465582923,9.61938619,154.91,154.86,18.64964886]
[1749465582924,51.21938619,154.9,154.86,18.64964886]
[1749465583229,9.61938619,154.89,154.86,18.64964886]
[1749465583419,9.61938619,154.89,154.85,6.45786244]
[1749465583614,9.61938619,154.88,154.85,6.45786244]
[1749465584498,9.61938619,154.89,154.85,6.45786244]
[1749465585213,9.61938619,154.88,154.85,18.64964886]
[1749465585621,9.61938619,154.88,154.84,6.45812282]
[1749465585802,53.08,154.9,154.84,6.45812282]
[1749465586001,53.08,154.9,154.85,9.61938619]
[1749465586002,62.69938619,154.9,154.85,9.61938619]
[1749465586824,53.08,154.9,154.87,18.64964886]
[1749465587031,53.08,154.9,154.88,6.45661157]
[1749465587401,9.61938619,154.9,154.86,6.45712252]
[1749465587604,9.61938619,154.9,154.87,18.64964886]
[1749465587814,51.21938619,154.9,154.87,18.64964886]
[1749465588034,41.6,154.9,154.87,18.64964886]
[1749465588409,9.61938619,154.89,154.83,6.45869663]
[1749465588608,9.61938619,154.89,154.85,18.64964886]
[1749465589033,9.61938619,154.88,154.85,18.64964886]
[1749465589526,9.61938619,154.89,154.85,25.10743984]
[1749465590045,41.6,154.9,154.85,25.10743984]
[1749465590334,9.61938619,154.89,154.85,25.10743984]
[1749465590511,9.61938619,154.89,154.85,34.72682603]
[1749465590713,51.21938619,154.9,154.85,34.72682603]
[1749465590913,41.6,154.9,154.87,18.64964886]
[1749465591134,41.6,154.9,154.88,6.45661157]
[1749465591334,9.61938619,154.91,154.89,18.64964886]
[1749465591335,41.58,154.91,154.89,18.64964886]
[1749465592327,9.61938619,154.92,154.89,18.64964886]
[1749465592504,41.58,154.92,154.89,18.64964886]
[1749465593416,41.58,154.92,154.89,25.10577337]
[1749465594027,51.19938619,154.92,154.89,18.64964886]
[1749465595240,51.19938619,154.92,154.89,6.4561814]
[1749465595740,41.58,154.92,154.89,25.10583026]
[1749465596946,47.09938619,154.93,154.89,25.10583026]
[1749465597132,88.67938619,154.93,154.89,25.10583026]
[1749465598620,9.61938619,154.92,154.89,25.10583026]
[1749465598950,9.61938619,154.92,154.89,18.64964886]
[1749465599320,79.06,154.93,154.85,16.14465611]
[1749465599321,9.61938619,154.9,154.86,6.45744543]
[1749465599639,9.61938619,154.9,154.86,34.72648048]
[1749465599840,9.61938619,154.91,154.86,34.72648048]
[1749465600551,85.51452961,154.93,154.87,9.61938619]
[1749465600552,9.61938619,154.92,154.87,9.61938619]
[1749465600915,9.61938619,154.91,154.86,34.72648048]
[1749465601416,9.61938619,154.89,154.83,6.45869663]
[1749465601621,9.61938619,154.88,154.84,18.64964886]
[1749465601845,51.17938619,154.89,154.84,28.26903505]
[1749465602047,41.56,154.89,154.86,9.61938619]
[1749465602229,6.45426186,154.94,154.88,18.64964886]
[1749465602547,9.61938619,154.93,154.88,16.07559717]
[1749465602727,51.17938619,154.93,154.88,16.07559717]
[1749465603441,9.61938619,154.92,154.88,6.45621098]
[1749465603928,51.17938619,154.93,154.88,16.07559717]
[1749465605651,11.44,154.95,154.88,34.72524603]
[1749465605855,9.61938619,154.93,154.88,34.72524603]
[1749465606224,9.61938619,154.93,154.89,18.64964886]
[1749465606652,9.61938619,154.94,154.89,16.07519095]
[1749465606948,41.56,154.93,154.91,28.26903505]
[1749465607154,62.61938619,154.95,154.91,18.64964886]
[1749465607729,21.05938619,154.95,154.91,18.64964886]
[1749465607932,21.05938619,154.95,154.91,25.10485151]
[1749465608135,62.59938619,154.95,154.91,25.10485151]
[1749465609661,62.59938619,154.95,154.91,34.7242377]
[1749465609662,11.44,154.95,154.91,34.7242377]
[1749465609953,21.05938619,154.99,154.95,18.64964886]
[1749465610157,62.59938619,154.99,154.95,28.26903505]
[1749465610463,9.61938619,154.98,154.95,18.64964886]
[1749465610643,51.15938619,154.98,154.95,18.64964886]
[1749465610837,9.61938619,154.98,154.95,18.64964886]
[1749465612838,52.98,154.99,154.95,18.64964886]
[1749465613031,9.61938619,154.98,154.95,18.64964886]
[1749465613561,52.98,154.99,154.95,18.64964886]
[1749465613763,9.61938619,154.98,154.95,18.64964886]
[1749465613965,62.59938619,154.99,154.95,25.10326349]
[1749465615163,21.05938619,154.99,154.95,25.10326349]
[1749465615339,62.57938619,154.99,154.95,25.10326349]
[1749465616249,62.57938619,154.99,154.91,16.42272608]
[1749465616250,9.61938619,154.98,154.93,16.07352086]
[1749465616951,9.61938619,154.98,154.95,18.64964886]
[1749465617272,9.61938619,154.97,154.92,25.10459334]
[1749465617573,11.44,154.99,154.95,28.26903505]
[1749465617753,51.13938619,155.02,154.98,9.61938619]
[1749465618142,51.13938619,155.02,154.98,16.07147572]
[1749465619159,9.61938619,155.02,154.98,16.07147572]
[1749465619368,51.11938619,155.02,154.98,16.07147572]
[1749465619561,41.5,155.02,154.99,18.64964886]
[1749465620565,11.44,155.03,155.0,9.61938619]
[1749465621066,27.50989262,155.03,154.99,18.64964886]
[1749465621749,21.05938619,155.03,154.99,18.64964886]
[1749465621959,62.55938619,155.03,154.99,18.64964886]
[1749465622141,62.55938619,155.03,154.99,28.26903505]
[1749465622342,27.50978416,155.03,154.99,28.26903505]
[1749465622543,69.00978416,155.03,154.99,28.26903505]
[1749465622778,9.61938619,155.01,154.97,18.64964886]
[1749465623065,59.39039797,155.03,154.97,18.64964886]
[1749465623066,9.61938619,155.0,154.97,18.64964886]
[1749465623435,9.61938619,154.99,154.91,6.3193]
[1749465623756,9.61938619,154.99,154.95,18.64964886]
[1749465623949,9.61938619,154.99,154.95,28.26903505]
[1749465624861,16.07115533,155.0,154.95,28.26903505]
[1749465625071,16.07115533,155.0,154.95,18.64964886]
[1749465625266,9.61938619,154.98,154.95,18.64964886]
[1749465625643,9.61938619,154.98,154.93,6.45442871]
[1749465625869,9.61938619,154.97,154.94,18.64964886]
[1749465629166,9.61938619,154.97,154.93,0.14216157]
[1749465629466,9.61938619,154.95,154.92,18.64964886]
[1749465631061,9.61938619,154.95,154.92,25.1045822]
[1749465631254,9.61938619,154.96,154.92,34.72396839]
[1749465631670,9.61938619,154.96,154.92,25.1045822]
[1749465631863,9.61938619,154.95,154.92,18.64964886]
[1749465632254,9.61938619,154.96,154.92,25.10458433]
[1749465633384,16.07271488,154.96,154.92,18.64964886]
[1749465633555,16.07271488,154.96,154.9,0.28432314]
[1749465633556,9.61938619,154.93,154.9,18.79181043]
[1749465635086,9.61938619,154.93,154.88,34.7254915]
[1749465635289,41.46,154.95,154.88,18.64964886]
[1749465635458,9.61938619,154.91,154.88,25.10617988]
[1749465636459,9.61938619,154.91,154.87,6.45692318]
[1749465636677,9.61938619,154.9,154.88,18.64964886]
[1749465638458,9.61938619,154.91,154.88,25.10625432]
[1749465638663,9.61938619,154.91,154.87,25.10660495]
[1749465639281,6.45421556,154.94,154.88,0.14216157]
[1749465639282,9.61938619,154.92,154.88,0.14216157]
[1749465639667,9.61938619,154.92,154.88,6.59846751]
[1749465639868,9.61938619,154.92,154.88,16.2178537]
[1749465640074,67.46,154.95,154.9,18.64964886]
[1749465640075,9.61938619,154.93,154.9,18.64964886]
[1749465640273,41.46,154.95,154.9,18.64964886]
[1749465640468,9.61938619,154.94,154.9,28.26903505]
[1749465640782,41.46,154.95,154.9,28.26903505]
[1749465640783,9.61938619,154.95,154.9,28.26903505]
[1749465640986,41.46,154.96,154.9,28.26903505]
[1749465641187,9.61938619,154.94,154.9,28.26903505]
[1749465641499,9.61938619,154.95,154.91,0.14216157]
[1749465641670,9.61938619,154.95,154.92,6.45494448]
[1749465641864,9.61938619,154.96,154.93,18.64964886]
[1749465642965,9.61938619,154.95,154.91,0.14216157]
[1749465643173,9.61938619,154.93,154.9,18.64964886]
[1749465643381,9.61938619,154.94,154.9,18.64964886]
[1749465643989,9.61938619,154.94,154.92,18.64964886]
[1749465647696,9.61938619,154.95,154.92,18.64964886]
[1749465647896,9.61938619,154.95,154.91,6.45519944]
[1749465648099,9.61938619,154.95,154.92,18.64964886]
[1749465648991,9.61938619,154.96,154.92,18.64964886]
[1749465650310,21.01938619,154.97,154.93,16.07391404]
[1749465650481,52.84,154.97,154.93,16.07391404]
[1749465650799,11.4,154.97,154.93,16.07391404]
[1749465651784,11.4,154.97,154.95,28.26903505]
[1749465651986,9.61938619,155.0,154.95,28.26903505]
[1749465651987,51.05938619,155.0,154.95,28.26903505]
[1749465652299,51.05938619,155.0,154.95,34.72237184]
[1749465652474,9.61938619,155.0,154.95,34.72237184]
[1749465652805,42.9453,155.01,154.95,34.72237184]
[1749465652986,9.61938619,155.0,154.96,0.14216157]
[1749465654086,52.56468619,155.01,154.97,18.64964886]
[1749465654506,11.14468619,155.01,154.97,18.64964886]
[1749465655601,9.61938619,155.0,154.97,18.64964886]
[1749465655784,7.9765273,155.01,154.96,6.59517506]
[1749465655785,6.4512273,155.01,154.96,25.24503015]
[1749465655990,9.61938619,155.0,154.96,34.86441634]
[1749465656593,78.78,155.02,154.96,34.86441634]
[1749465656801,9.61938619,155.0,154.96,34.86441634]
[1749465658585,9.61938619,155.0,154.96,25.24503015]
[1749465659507,9.61938619,155.0,154.96,34.86441634]
[1749465659680,9.61938619,155.01,154.96,34.86441634]
[1749465661220,38.7116,155.06,155.0,18.64964886]
[1749465661396,9.61938619,155.05,155.0,28.26903505]
[1749465661590,9.61938619,155.05,154.97,0.14216157]
[1749465661591,89.73098619,155.06,155.01,9.61938619]
[1749465661783,48.33098619,155.06,155.02,18.64964886]
[1749465661984,11.13098619,155.06,155.02,18.64964886]
[1749465662219,1.5116,155.06,155.03,6.45036444]
[1749465662508,11.36,155.07,155.04,18.64964886]
[1749465662714,11.36,155.07,155.04,28.26903505]
[1749465662912,9.61938619,155.09,155.04,28.26903505]
[1749465663282,9.61938619,155.09,155.05,9.76154776]
[1749465663591,52.61578619,155.1,155.06,18.64964886]
[1749465663803,11.36,155.12,155.08,18.64964886]
[1749465663984,20.97938619,155.12,155.08,18.64964886]
[1749465664182,9.61938619,155.11,155.07,0.14216157]
[1749465664385,9.61938619,155.11,155.08,18.64964886]
[1749465664609,9.61938619,155.11,155.07,0.14216157]
[1749465664992,9.61938619,155.1,155.07,0.14216157]
[1749465665191,9.61938619,155.11,155.07,0.14216157]
[1749465665703,9.61938619,155.1,155.07,0.14216157]
[1749465668818,9.61938619,155.1,155.06,18.933972]
[1749465669009,9.61938619,155.1,155.06,25.38307597]
[1749465669901,9.61938619,155.1,155.06,28.55335819]
[1749465670103,9.61938619,155.09,155.06,0.14216157]
[1749465670325,9.61938619,155.08,155.06,0.14216157]
[1749465670508,9.61938619,155.08,155.05,18.64964886]
[1749465671025,9.61938619,155.08,155.05,0.14216157]
[1749465672526,9.61938619,155.07,155.02,27.5551]
[1749465672698,9.61938619,155.06,155.03,18.64964886]
[1749465672893,6.44800426,155.09,155.03,18.64964886]
[1749465672894,6.44703758,155.11,155.03,25.09988941]
[1749465673120,9.61938619,155.07,155.03,25.09988941]
[1749465673326,9.61938619,155.07,155.03,34.7192756]
[1749465673627,9.61938619,155.07,155.03,18.64964886]
[1749465674004,9.61938619,155.07,155.04,0.14216157]
[1749465675003,9.61938619,155.07,155.04,6.59209995]
[1749465675502,9.61938619,155.08,155.04,6.59209995]
[1749465676318,50.95938619,155.1,155.05,9.76154776]
[1749465676621,50.95938619,155.1,155.06,0.14216157]
[1749465676797,9.61938619,155.1,155.07,18.64964886]
[1749465679008,9.61938619,155.09,155.07,18.64964886]
[1749465680326,9.61938619,155.08,155.04,0.14216157]
[1749465680710,9.61938619,155.08,155.03,28.41119662]
[1749465680905,9.61938619,155.07,155.03,28.41119662]
[1749465681214,6.44747143,155.1,155.03,28.41119662]
[1749465681622,9.61938619,155.08,155.03,28.41119662]
[1749465681832,9.61938619,155.08,155.04,6.44980217]
[1749465682648,9.61938619,155.08,155.05,18.64964886]
[1749465685850,6.44799062,155.09,155.05,18.64964886]
[1749465686019,9.61938619,155.08,155.05,18.64964886]
[1749465686336,9.61938619,155.08,155.03,34.86141009]
[1749465687212,9.61938619,155.06,155.03,18.64964886]
[1749465687408,22.56608638,155.1,155.02,18.933972]
[1749465687409,9.61938619,155.05,155.02,18.933972]
[1749465687738,22.56608638,155.1,155.01,18.64964886]
[1749465687739,9.61938619,155.04,155.01,18.64964886]
[1749465688137,9.61938619,155.02,154.97,6.3415]
[1749465688323,9.61938619,155.01,154.97,6.45286184]
[1749465688649,1.5133,155.08,155.0,28.26903505]
[1749465688826,50.91938619,155.09,155.05,18.64964886]
[1749465689518,50.91938619,155.09,155.05,25.09913037]
[1749465690336,50.91938619,155.09,155.05,18.64964886]
[1749465691819,57.36728401,155.09,155.05,18.64964886]
[1749465692743,41.3,155.09,155.05,25.0991526]
[1749465692950,50.91938619,155.09,155.05,25.0991526]
[1749465693247,50.91938619,155.09,155.05,18.64964886]
[1749465693717,57.3673015,155.09,155.05,18.64964886]
[1749465694333,9.61938619,155.08,155.03,16.06959082]
[1749465695348,9.61938619,155.06,155.03,18.64964886]
[1749465695654,9.61938619,155.07,155.02,28.26903505]
[1749465696145,9.61938619,155.07,155.01,6.45094254]
[1749465696146,9.61938619,155.08,155.04,18.64964886]
[1749465696440,9.61938619,155.05,155.02,6.45074621]
[1749465696632,9.61938619,155.05,155.02,18.64964886]
[1749465696833,9.61938619,155.04,155.02,18.64964886]
[1749465697017,9.61938619,155.04,155.01,0.28432314]
[1749465697641,47.74789272,155.09,155.02,18.64964886]
[1749465697945,9.61938619,155.07,155.03,6.45036444]
[1749465698845,9.61938619,155.06,155.02,34.71967105]
[1749465700052,9.61938619,155.07,155.03,0.28432314]
[1749465700237,9.61938619,155.08,155.03,9.90370933]
[1749465700548,9.61938619,155.07,155.03,0.28432314]
[1749465701552,50.89938619,155.1,155.05,9.61938619]
[1749465701725,9.61938619,155.11,155.07,18.64964886]
[1749465702046,9.61938619,155.1,155.06,18.933972]
[1749465702274,9.61938619,155.1,155.06,25.38279729]
[1749465703456,9.61938619,155.09,155.05,26.0]
[1749465703658,9.61938619,155.08,155.05,26.0]
[1749465703954,9.61938619,155.09,155.06,18.64964886]
[1749465705944,9.61938619,155.08,155.06,18.64964886]
[1749465706440,4.81732879,155.11,155.06,25.09871292]
[1749465706646,9.61938619,155.09,155.06,18.64964886]
[1749465706832,14.43671498,155.09,155.06,18.64964886]
[1749465707158,9.61938619,155.09,155.06,18.64964886]
[1749465707458,9.61938619,155.08,155.04,25.09947726]
[1749465707765,9.61938619,155.06,155.04,18.64964886]
[1749465708233,41.26,155.08,155.01,18.64964886]
[1749465708234,9.61938619,155.05,155.01,18.64964886]
[1749465708432,9.61938619,155.06,155.01,28.26903505]
[1749465709651,9.61938619,155.06,155.02,6.45078054]
[1749465709839,9.61938619,155.06,155.02,16.07016673]
[1749465710261,9.61938619,155.06,155.02,6.45078054]
[1749465710634,9.61938619,155.05,155.01,25.10068729]
[1749465713468,9.61938619,155.05,155.01,34.72007348]
[1749465715243,9.61938619,155.06,155.01,34.72007348]
[1749465718136,14.44775407,155.06,155.01,34.72007348]
[1749465718365,9.61938619,155.06,155.01,34.72007348]
[1749465720068,9.61938619,155.05,155.01,34.72007348]
[1749465720774,9.61938619,155.06,155.01,34.72007348]
[1749465722890,9.61938619,155.06,155.03,18.64964886]
[1749465724164,4.8280638,155.07,155.05,18.64964886]
[1749465724367,50.83938619,155.08,155.03,16.06941137]
[1749465724596,9.61938619,155.07,155.03,16.06941137]
[1749465724966,46.0480638,155.09,155.05,18.64964886]
[1749465725375,55.66744999,155.09,155.05,18.64964886]
[1749465725583,46.0480638,155.09,155.05,18.64964886]
[1749465725767,55.66744999,155.09,155.05,9.61938619]
[1749465725969,50.83938619,155.09,155.04,28.55335819]
[1749465726268,55.66708926,155.09,155.05,6.4495324]
[1749465726479,50.83938619,155.09,155.05,16.06891859]
[1749465727361,50.83938619,155.09,155.05,6.4495324]
[1749465727785,41.22,155.09,155.05,16.06891859]
[1749465728083,20.87938619,155.1,155.05,16.06891859]
[1749465728282,25.70671009,155.1,155.05,16.06891859]
[1749465728881,9.61938619,155.08,155.04,26.0]
[1749465729086,9.61938619,155.08,155.05,18.64964886]
[1749465729897,14.4467418,155.09,155.05,25.09899852]
[1749465730083,9.61938619,155.09,155.05,25.09899852]
[1749465730289,14.44635635,155.09,155.05,25.09899852]
[1749465730972,14.44633269,155.09,155.05,25.09899852]
[1749465731168,9.61938619,155.09,155.05,25.09899852]
[1749465731487,52.46,155.1,155.05,25.09899852]
[1749465731690,66.9059539,155.1,155.05,34.71838471]
[1749465731993,62.07938619,155.1,155.05,34.71838471]
[1749465732176,62.07938619,155.1,155.06,9.61938619]
[1749465733199,62.07938619,155.1,155.06,6.44870122]
[1749465733980,9.61938619,155.09,155.06,6.44870122]
[1749465735401,1.6348,155.12,155.07,18.64964886]
[1749465735694,4.82611556,155.11,155.07,28.26903505]
[1749465735903,14.44550175,155.11,155.07,28.26903505]
[1749465736101,4.82611556,155.1,155.07,18.64964886]
[1749465736287,14.44550175,155.1,155.06,6.44870122]
[1749465736483,14.44550175,155.09,155.06,6.44870122]
[1749465736682,9.61938619,155.09,155.06,6.44870122]
[1749465737193,9.61938619,155.08,155.05,18.64964886]
[1749465737496,4.82611556,155.09,155.04,32.44978797]
[1749465737497,9.61938619,155.07,155.04,32.44978797]
[1749465737673,6.44798018,155.09,155.03,9.61938619]
[1749465737674,9.61938619,155.05,155.03,6.45034989]
[1749465738782,9.61938619,155.05,155.02,6.45067899]
[1749465741484,9.61938619,155.05,155.02,18.64964886]
[1749465742780,41.2,155.07,155.03,9.61938619]
[1749465742982,50.81938619,155.07,155.03,9.61938619]
[1749465743394,50.81938619,155.07,155.02,25.10024032]
[1749465743705,50.81938619,155.07,155.04,18.64964886]
[1749465743899,6.3833,155.11,155.06,9.61938619]
[1749465743900,9.61938619,155.11,155.06,9.61938619]
[1749465744081,4.82555858,155.1,155.08,18.64964886]
[1749465744281,4.82555858,155.11,155.08,18.64964886]
[1749465744481,6.46035858,155.12,155.08,18.64964886]
[1749465744697,6.46035858,155.12,155.08,25.09770372]
[1749465744698,16.07974477,155.12,155.08,25.09770372]
[1749465744908,9.61938619,155.11,155.08,25.09770372]
[1749465747986,1.6348,155.12,155.08,25.09770372]
[1749465748187,9.61938619,155.12,155.08,25.09770372]
[1749465749309,11.22,155.14,155.09,9.61938619]
[1749465749492,9.61938619,155.13,155.1,18.64964886]
[1749465750021,9.61938619,155.12,155.08,16.06744105]
[1749465752191,9.61938619,155.13,155.08,16.06744105]
[1749465754414,9.61938619,155.13,155.1,6.44745325]
[1749465754601,61.99938619,155.14,155.1,6.44745325]
[1749465754798,20.83938619,155.14,155.1,6.44745325]
[1749465755501,20.83938619,155.14,155.1,16.06683944]
[1749465757399,20.83938619,155.14,155.1,6.44745325]
[1749465758295,20.83938619,155.14,155.1,16.06683944]
[1749465759107,11.22,155.14,155.11,18.64964886]
[1749465760008,11.22,155.14,155.11,28.26903505]
[1749465760217,11.22,155.14,155.12,6.44662197]
[1749465764021,20.83938619,155.14,155.11,25.09663011]
[1749465764622,11.22,155.14,155.11,25.09663011]
[1749465764823,20.83938619,155.14,155.11,18.64964886]
[1749465765018,9.61938619,155.12,155.08,6.44828475]
[1749465765320,9.61938619,155.13,155.09,18.64964886]
[1749465765496,9.61938619,155.13,155.09,28.26903505]
[1749465765701,9.61938619,155.13,155.09,18.64964886]
[1749465766125,9.61938619,155.13,155.1,6.44745325]
[1749465767336,21.59938619,155.14,155.11,18.64964886]
[1749465767623,11.98,155.14,155.11,28.26903505]
[1749465768011,0.76,155.14,155.12,6.44662197]
[1749465769519,0.76,155.14,155.1,6.44737954]
[1749465769520,9.61938619,155.13,155.1,6.44737954]
[1749465771108,9.61938619,155.13,155.09,25.09737809]
[1749465772928,0.76,155.14,155.09,25.09737809]
[1749465773240,9.61938619,155.13,155.09,25.09737809]
[1749465776949,9.61938619,155.13,155.09,34.71676428]